[Event "Titled Tuesday Blitz April 11 Late 2023"]
[White "Harriott, Tyrell"]
[Black "Rosen, Eric"]
[WhiteFideId "2086484"]
[BlackFideId "2032562"]
[WhiteElo "2107"]
[BlackElo "2331"]
[Result "0-1"]
[Round "04"]
[TimeControl "180+2"]
[Date "2023.04.11"]
[WhiteClock "0:00:03"]
[BlackClock "0:00:38"]

1. d4 {[%clk 0:03:00]}  d5 {[%clk 0:02:59]} 2. e3 {[%clk 0:03:01]}  Nf6 {[%clk 0:02:48]} 3. Bd3 {[%clk 0:03:00]}  c5 {[%clk 0:02:47]} 4. c3 {[%clk 0:03:00]}  Nc6 {[%clk 0:02:48]} 5. f4 {[%clk 0:03:00]}  Bg4 {[%clk 0:02:49]} 6. Ne2 {[%clk 0:02:59]}  e6 {[%clk 0:02:43]} 7. Nd2 {[%clk 0:02:58]}  Bd6 {[%clk 0:02:37]} 8. O-O {[%clk 0:02:58]}  O-O {[%clk 0:02:35]} 9. Nf3 {[%clk 0:02:58]}  Bf5 {[%clk 0:02:23]} 10. Ng3 {[%clk 0:02:55]}  Bg6 {[%clk 0:02:20]} 11. f5 {[%clk 0:02:55]}  exf5 {[%clk 0:02:20]} 12. Nxf5 {[%clk 0:02:55]}  c4 {[%clk 0:02:08]} 13. Bc2 {[%clk 0:02:54]}  Re8 {[%clk 0:02:08]} 14. N3h4 {[%clk 0:02:48]}  Ne4 {[%clk 0:02:02]} 15. Qg4 {[%clk 0:02:43]}  b5 {[%clk 0:01:50]} 16. a3 {[%clk 0:02:33]}  a5 {[%clk 0:01:50]} 17. Qe2 {[%clk 0:02:21]}  Qg5 {[%clk 0:01:42]} 18. Bd2 {[%clk 0:01:58]}  Bc7 {[%clk 0:01:31]} 19. Rae1 {[%clk 0:01:46]}  Bh5 {[%clk 0:01:25]} 20. g4 {[%clk 0:01:38]}  Bxg4 {[%clk 0:01:15]} 21. Qg2 {[%clk 0:01:36]}  Nxd2 {[%clk 0:01:16]} 22. Rf2 {[%clk 0:00:42]}  Ne4 {[%clk 0:01:05]} 23. Bxe4 {[%clk 0:00:33]}  Rxe4 {[%clk 0:01:03]} 24. h3 {[%clk 0:00:33]}  h6 {[%clk 0:00:58]} 25. Kh1 {[%clk 0:00:29]}  Bxf5 {[%clk 0:00:56]} 26. Nxf5 {[%clk 0:00:25]}  Qxg2+ {[%clk 0:00:49]} 27. Rxg2 {[%clk 0:00:26]}  g6 {[%clk 0:00:50]} 28. Nxh6+ {[%clk 0:00:25]}  Kg7 {[%clk 0:00:40]} 29. Nf5+ {[%clk 0:00:24]}  Kf6 {[%clk 0:00:40]} 30. Ng3 {[%clk 0:00:14]}  Bxg3 {[%clk 0:00:40]} 31. Rxg3 {[%clk 0:00:13]}  Rae8 {[%clk 0:00:41]} 32. Kg2 {[%clk 0:00:13]}  b4 {[%clk 0:00:41]} 33. axb4 {[%clk 0:00:12]}  axb4 {[%clk 0:00:42]} 34. Ra1 {[%clk 0:00:11]}  bxc3 {[%clk 0:00:41]} 35. bxc3 {[%clk 0:00:11]}  Rxe3 {[%clk 0:00:41]} 36. Ra6 {[%clk 0:00:10]}  Rxg3+ {[%clk 0:00:41]} 37. Kxg3 {[%clk 0:00:11]}  Re6 {[%clk 0:00:42]} 38. Kf4 {[%clk 0:00:11]}  Nxd4 {[%clk 0:00:42]} 39. Ra5 {[%clk 0:00:08]}  Ne2+ {[%clk 0:00:42]} 40. Kf3 {[%clk 0:00:08]}  Nxc3 {[%clk 0:00:43]} 41. Rc5 {[%clk 0:00:07]}  Ke5 {[%clk 0:00:42]} 42. Rc7 {[%clk 0:00:07]}  Kd4 {[%clk 0:00:41]} 43. Rxf7 {[%clk 0:00:06]}  Kd3 {[%clk 0:00:42]} 44. Rd7 {[%clk 0:00:05]}  d4 {[%clk 0:00:42]} 45. h4 {[%clk 0:00:05]}  Ne4 {[%clk 0:00:42]} 46. Kf4 {[%clk 0:00:05]}  c3 {[%clk 0:00:41]} 47. Rc7 {[%clk 0:00:05]}  c2 {[%clk 0:00:41]} 48. Kg4 {[%clk 0:00:04]}  Nc3 {[%clk 0:00:41]} 49. h5 {[%clk 0:00:01]}  gxh5+ {[%clk 0:00:41]} 50. Kxh5 {[%clk 0:00:02]}  c1=Q {[%clk 0:00:41]} 51. Kg4 {[%clk 0:00:02]}  Qg1+ {[%clk 0:00:41]} 52. Kf3 {[%clk 0:00:02]}  Re3+ {[%clk 0:00:40]} 53. Kf4 {[%clk 0:00:03]}  Qg3+ {[%clk 0:00:41]} 54. Kf5 {[%clk 0:00:03]}  Re5+ {[%clk 0:00:42]} 55. Kf6 {[%clk 0:00:04]}  Qg5+ {[%clk 0:00:41]} 56. Kf7 {[%clk 0:00:05]}  Rf5+ {[%clk 0:00:40]} 57. Ke6 {[%clk 0:00:05]}  Qg6+ {[%clk 0:00:39]} 58. Kd7 {[%clk 0:00:06]}  Rf7+ {[%clk 0:00:40]} 59. Kc8 {[%clk 0:00:05]}  Qa6+ {[%clk 0:00:38]} 60. Kd8 {[%clk 0:00:03]}  Qd6+ {[%clk 0:00:37]} 61. Kc8 {[%clk 0:00:03]}  Qxc7# {[%clk 0:00:38]} 0-1


[Site "https://www.chess.com"]

[Event "Titled Tuesday Blitz April 11 Late 2023"]
[White "Perez Rodriguez, Jennifer"]
[Black "Bilan, Danila"]
[WhiteFideId "3507831"]
[BlackFideId "24161918"]
[WhiteElo "2116"]
[BlackElo "2182"]
[Result "1-0"]
[Round "04"]
[TimeControl "180+2"]
[Date "2023.04.11"]
[WhiteClock "0:00:29"]
[BlackClock "0:00:04"]

1. c4 {[%clk 0:03:00]}  c6 {[%clk 0:03:00]} 2. Nf3 {[%clk 0:02:52]}  d5 {[%clk 0:03:01]} 3. e3 {[%clk 0:02:51]}  Nf6 {[%clk 0:03:00]} 4. b3 {[%clk 0:02:51]}  Bg4 {[%clk 0:02:56]} 5. Be2 {[%clk 0:02:49]}  e6 {[%clk 0:02:55]} 6. Bb2 {[%clk 0:02:49]}  Nbd7 {[%clk 0:02:55]} 7. O-O {[%clk 0:02:50]}  Bd6 {[%clk 0:02:55]} 8. d4 {[%clk 0:02:45]}  Ne4 {[%clk 0:02:51]} 9. Ne5 {[%clk 0:02:42]}  Bxe2 {[%clk 0:02:49]} 10. Qxe2 {[%clk 0:02:43]}  O-O {[%clk 0:02:26]} 11. f3 {[%clk 0:02:36]}  Nef6 {[%clk 0:02:21]} 12. Nd2 {[%clk 0:02:36]}  c5 {[%clk 0:02:17]} 13. f4 {[%clk 0:02:32]}  cxd4 {[%clk 0:02:12]} 14. exd4 {[%clk 0:02:31]}  Rc8 {[%clk 0:02:05]} 15. Rae1 {[%clk 0:02:25]}  Bb4 {[%clk 0:01:48]} 16. Rd1 {[%clk 0:01:49]}  Bxd2 {[%clk 0:01:30]} 17. Qxd2 {[%clk 0:01:46]}  Ne4 {[%clk 0:01:24]} 18. Qd3 {[%clk 0:01:45]}  f5 {[%clk 0:01:06]} 19. h3 {[%clk 0:01:07]}  Re8 {[%clk 0:00:51]} 20. Kh2 {[%clk 0:01:05]}  Nxe5 {[%clk 0:00:43]} 21. fxe5 {[%clk 0:01:04]}  g6 {[%clk 0:00:18]} 22. Rc1 {[%clk 0:00:51]}  Qg5 {[%clk 0:00:15]} 23. Rc2 {[%clk 0:00:50]}  Rc6 {[%clk 0:00:13]} 24. Bc1 {[%clk 0:00:48]}  Qh4 {[%clk 0:00:11]} 25. g3 {[%clk 0:00:46]}  Qd8 {[%clk 0:00:07]} 26. Be3 {[%clk 0:00:43]}  Re7 {[%clk 0:00:04]} 27. Rfc1 {[%clk 0:00:44]}  Rec7 {[%clk 0:00:04]} 28. c5 {[%clk 0:00:43]}  Rc8 {[%clk 0:00:03]} 29. b4 {[%clk 0:00:44]}  R6c7 {[%clk 0:00:04]} 30. b5 {[%clk 0:00:44]}  Rf7 {[%clk 0:00:03]} 31. a4 {[%clk 0:00:35]}  Qf8 {[%clk 0:00:04]} 32. c6 {[%clk 0:00:34]}  bxc6 {[%clk 0:00:04]} 33. Rxc6 {[%clk 0:00:35]}  Rfc7 {[%clk 0:00:04]} 34. Rxc7 {[%clk 0:00:35]}  Rxc7 {[%clk 0:00:05]} 35. Rxc7 {[%clk 0:00:35]}  Qb4 {[%clk 0:00:05]} 36. Bh6 {[%clk 0:00:31]}  Qb2+ {[%clk 0:00:05]} 37. Qc2 {[%clk 0:00:29]}  Qa3 {[%clk 0:00:04]} 38. Rc8+ {[%clk 0:00:29]}  Kf7 {[%clk 0:00:04]} 39. Qc7+ {[%clk 0:00:29]} 1-0


[Site "https://www.chess.com"]

[Event "Titled Tuesday Blitz April 11 Late 2023"]
[White "Gutkin, Ilya"]
[Black "Omelja, Artem"]
[WhiteFideId "16203470"]
[BlackFideId "14119846"]
[WhiteElo "2265"]
[BlackElo "2404"]
[Result "0-1"]
[Round "04"]
[TimeControl "180+2"]
[Date "2023.04.11"]
[WhiteClock "0:00:03"]
[BlackClock "0:01:01"]

1. Nf3 {[%clk 0:03:00]}  c5 {[%clk 0:02:54]} 2. c4 {[%clk 0:02:58]}  Nf6 {[%clk 0:02:52]} 3. d4 {[%clk 0:02:56]}  cxd4 {[%clk 0:02:52]} 4. Nxd4 {[%clk 0:02:56]}  d6 {[%clk 0:02:50]} 5. Nc3 {[%clk 0:02:55]}  Bd7 {[%clk 0:02:50]} 6. e4 {[%clk 0:02:50]}  Nc6 {[%clk 0:02:50]} 7. Be3 {[%clk 0:02:38]}  g6 {[%clk 0:02:46]} 8. Be2 {[%clk 0:02:36]}  Bg7 {[%clk 0:02:45]} 9. O-O {[%clk 0:02:36]}  O-O {[%clk 0:02:45]} 10. Qd2 {[%clk 0:02:36]}  Rc8 {[%clk 0:02:46]} 11. f3 {[%clk 0:02:25]}  a6 {[%clk 0:02:44]} 12. Rab1 {[%clk 0:02:14]}  Qa5 {[%clk 0:02:33]} 13. Nc2 {[%clk 0:02:06]}  Ne5 {[%clk 0:02:26]} 14. b4 {[%clk 0:01:56]}  Qc7 {[%clk 0:02:26]} 15. Na3 {[%clk 0:01:56]}  b5 {[%clk 0:02:21]} 16. Nd5 {[%clk 0:01:34]}  Nxd5 {[%clk 0:02:17]} 17. cxd5 {[%clk 0:01:35]}  f5 {[%clk 0:02:09]} 18. f4 {[%clk 0:01:04]}  Ng4 {[%clk 0:02:07]} 19. Bxg4 {[%clk 0:01:04]}  fxg4 {[%clk 0:02:07]} 20. Rbc1 {[%clk 0:00:53]}  Qb7 {[%clk 0:02:07]} 21. Bd4 {[%clk 0:00:52]}  Bh6 {[%clk 0:01:47]} 22. g3 {[%clk 0:00:46]}  e5 {[%clk 0:01:47]} 23. dxe6 {[%clk 0:00:43]}  Bxe6 {[%clk 0:01:47]} 24. Qe2 {[%clk 0:00:15]}  Rxc1 {[%clk 0:01:39]} 25. Rxc1 {[%clk 0:00:15]}  Rc8 {[%clk 0:01:39]} 26. Rxc8+ {[%clk 0:00:14]}  Qxc8 {[%clk 0:01:39]} 27. Qc2 {[%clk 0:00:13]}  Qxc2 {[%clk 0:01:35]} 28. Nxc2 {[%clk 0:00:14]}  Bxa2 {[%clk 0:01:35]} 29. Kf2 {[%clk 0:00:14]}  Bb1 {[%clk 0:01:35]} 30. Ne3 {[%clk 0:00:14]}  Bg7 {[%clk 0:01:31]} 31. Bxg7 {[%clk 0:00:10]}  Kxg7 {[%clk 0:01:32]} 32. e5 {[%clk 0:00:08]}  dxe5 {[%clk 0:01:32]} 33. fxe5 {[%clk 0:00:09]}  Bf5 {[%clk 0:01:32]} 34. Nd5 {[%clk 0:00:05]}  Kf7 {[%clk 0:01:07]} 35. Ke3 {[%clk 0:00:05]}  Ke6 {[%clk 0:01:06]} 36. Kd4 {[%clk 0:00:06]}  Kd7 {[%clk 0:01:06]} 37. Nf6+ {[%clk 0:00:05]}  Kc6 {[%clk 0:01:06]} 38. Nxh7 {[%clk 0:00:05]}  Kb6 {[%clk 0:01:05]} 39. Ng5 {[%clk 0:00:03]}  a5 {[%clk 0:01:02]} 40. bxa5+ {[%clk 0:00:03]}  Kxa5 {[%clk 0:01:03]} 41. e6 {[%clk 0:00:03]}  Kb6 {[%clk 0:01:03]} 42. e7 {[%clk 0:00:03]}  Bd7 {[%clk 0:01:04]} 43. Kd5 {[%clk 0:00:03]}  b4 {[%clk 0:01:03]} 44. Kd6 {[%clk 0:00:03]}  Ba4 {[%clk 0:01:01]} 0-1


[Site "https://www.chess.com"]

[Event "Titled Tuesday Blitz April 11 Late 2023"]
[White "Przybylski, Wojciech"]
[Black "Seletsky, Grigory"]
[WhiteFideId "1117599"]
[BlackFideId "14112191"]
[WhiteElo "2222"]
[BlackElo "2490"]
[Result "1-0"]
[Round "04"]
[TimeControl "180+2"]
[Date "2023.04.11"]
[WhiteClock "0:00:15"]
[BlackClock "0:00:03"]

1. e4 {[%clk 0:03:00]}  e6 {[%clk 0:02:58]} 2. d4 {[%clk 0:03:00]}  d5 {[%clk 0:02:58]} 3. Nc3 {[%clk 0:03:01]}  Nc6 {[%clk 0:02:58]} 4. Bb5 {[%clk 0:02:59]}  Nf6 {[%clk 0:02:56]} 5. e5 {[%clk 0:02:58]}  Nd7 {[%clk 0:02:57]} 6. f4 {[%clk 0:02:53]}  a6 {[%clk 0:02:56]} 7. Be2 {[%clk 0:02:50]}  Ne7 {[%clk 0:02:30]} 8. Nf3 {[%clk 0:02:49]}  c5 {[%clk 0:02:31]} 9. Be3 {[%clk 0:02:49]}  Nc6 {[%clk 0:02:31]} 10. Qd2 {[%clk 0:02:46]}  Be7 {[%clk 0:02:29]} 11. f5 {[%clk 0:02:43]}  O-O {[%clk 0:02:27]} 12. f6 {[%clk 0:02:41]}  gxf6 {[%clk 0:02:27]} 13. Bh6 {[%clk 0:02:38]}  cxd4 {[%clk 0:02:23]} 14. Nxd4 {[%clk 0:02:32]}  fxe5 {[%clk 0:02:21]} 15. Nxc6 {[%clk 0:02:11]}  bxc6 {[%clk 0:02:19]} 16. O-O {[%clk 0:01:56]}  f5 {[%clk 0:02:12]} 17. Kh1 {[%clk 0:01:36]}  Rf6 {[%clk 0:01:50]} 18. Bh5 {[%clk 0:01:30]}  f4 {[%clk 0:01:43]} 19. Bg5 {[%clk 0:01:23]}  Rf5 {[%clk 0:01:39]} 20. Bxe7 {[%clk 0:01:16]}  Qxe7 {[%clk 0:01:38]} 21. Bg4 {[%clk 0:01:16]}  Rg5 {[%clk 0:01:26]} 22. Bh3 {[%clk 0:01:15]}  Bb7 {[%clk 0:01:05]} 23. Rae1 {[%clk 0:01:11]}  c5 {[%clk 0:01:02]} 24. Ne2 {[%clk 0:01:03]}  Rf8 {[%clk 0:00:34]} 25. Ng1 {[%clk 0:00:59]}  d4 {[%clk 0:00:16]} 26. Nf3 {[%clk 0:00:57]}  Bxf3 {[%clk 0:00:15]} 27. gxf3 {[%clk 0:00:52]}  Kh8 {[%clk 0:00:14]} 28. Rg1 {[%clk 0:00:32]}  Rfg8 {[%clk 0:00:14]} 29. Rxg5 {[%clk 0:00:31]}  Rxg5 {[%clk 0:00:14]} 30. Rg1 {[%clk 0:00:24]}  Rxg1+ {[%clk 0:00:12]} 31. Kxg1 {[%clk 0:00:25]}  Nf8 {[%clk 0:00:11]} 32. Qe2 {[%clk 0:00:24]}  Qg7+ {[%clk 0:00:09]} 33. Kf1 {[%clk 0:00:23]}  Qf6 {[%clk 0:00:08]} 34. Qxa6 {[%clk 0:00:22]}  Ng6 {[%clk 0:00:08]} 35. Qxe6 {[%clk 0:00:22]}  Qh4 {[%clk 0:00:07]} 36. Qg4 {[%clk 0:00:21]}  Qe7 {[%clk 0:00:06]} 37. Qc8+ {[%clk 0:00:20]}  Kg7 {[%clk 0:00:05]} 38. Qd7 {[%clk 0:00:19]}  Qxd7 {[%clk 0:00:04]} 39. Bxd7 {[%clk 0:00:19]}  Kf6 {[%clk 0:00:02]} 40. a4 {[%clk 0:00:18]}  Nf8 {[%clk 0:00:02]} 41. Bb5 {[%clk 0:00:16]}  Ke7 {[%clk 0:00:01]} 42. a5 {[%clk 0:00:16]}  Nd7 {[%clk 0:00:02]} 43. a6 {[%clk 0:00:16]}  Kd6 {[%clk 0:00:02]} 44. a7 {[%clk 0:00:16]}  Nb6 {[%clk 0:00:03]} 45. Bd3 {[%clk 0:00:15]} 1-0


[Site "https://www.chess.com"]

[Event "Titled Tuesday Blitz April 11 Late 2023"]
[White "Dobre, Claudiu-Cristian"]
[Black "Buchenau, Frank"]
[WhiteFideId "1211854"]
[BlackFideId "4604350"]
[WhiteElo "2207"]
[BlackElo "2157"]
[Result "1-0"]
[Round "04"]
[TimeControl "180+2"]
[Date "2023.04.11"]
[WhiteClock "0:00:44"]
[BlackClock "0:00:29"]

1. e4 {[%clk 0:03:00]}  e6 {[%clk 0:02:59]} 2. d4 {[%clk 0:03:00]}  d5 {[%clk 0:02:58]} 3. exd5 {[%clk 0:03:00]}  exd5 {[%clk 0:02:57]} 4. Bd3 {[%clk 0:03:01]}  Bd6 {[%clk 0:02:56]} 5. Qf3 {[%clk 0:02:56]}  Nf6 {[%clk 0:02:54]} 6. h3 {[%clk 0:02:56]}  Nc6 {[%clk 0:02:53]} 7. c3 {[%clk 0:02:56]}  Be6 {[%clk 0:02:46]} 8. Ne2 {[%clk 0:02:56]}  Qd7 {[%clk 0:02:13]} 9. Nf4 {[%clk 0:02:54]}  O-O-O {[%clk 0:02:09]} 10. O-O {[%clk 0:02:42]}  Rhe8 {[%clk 0:01:46]} 11. Nxe6 {[%clk 0:02:41]}  fxe6 {[%clk 0:01:44]} 12. Bf4 {[%clk 0:02:40]}  e5 {[%clk 0:01:33]} 13. dxe5 {[%clk 0:02:26]}  Nxe5 {[%clk 0:01:32]} 14. Bxe5 {[%clk 0:02:20]}  Rxe5 {[%clk 0:01:32]} 15. Nd2 {[%clk 0:02:15]}  Rde8 {[%clk 0:01:31]} 16. Rfd1 {[%clk 0:01:53]}  Kb8 {[%clk 0:01:28]} 17. Bf1 {[%clk 0:01:23]}  Rf5 {[%clk 0:01:12]} 18. Qd3 {[%clk 0:01:22]}  c6 {[%clk 0:01:00]} 19. c4 {[%clk 0:01:18]}  Bc7 {[%clk 0:00:46]} 20. Nf3 {[%clk 0:01:14]}  Rf4 {[%clk 0:00:42]} 21. cxd5 {[%clk 0:01:11]}  Nxd5 {[%clk 0:00:37]} 22. Qxh7 {[%clk 0:00:58]}  Qf7 {[%clk 0:00:33]} 23. Bd3 {[%clk 0:00:47]}  Bb6 {[%clk 0:00:31]} 24. Bg6 {[%clk 0:00:44]}  Qf8 {[%clk 0:00:29]} 25. Bxe8 {[%clk 0:00:44]} 1-0


[Site "https://www.chess.com"]

[Event "Titled Tuesday Blitz April 11 Late 2023"]
[White "Grot, Blazej"]
[Black "Marcziter, Dmitrii"]
[WhiteFideId "21835845"]
[BlackFideId "13900765"]
[WhiteElo "1823"]
[BlackElo "2162"]
[Result "1-0"]
[Round "04"]
[TimeControl "180+2"]
[Date "2023.04.11"]
[WhiteClock "0:00:02"]
[BlackClock "0:00:01"]

1. e4 {[%clk 0:03:00]}  c5 {[%clk 0:02:57]} 2. Nc3 {[%clk 0:03:00]}  a6 {[%clk 0:02:56]} 3. g3 {[%clk 0:02:59]}  b5 {[%clk 0:02:53]} 4. Bg2 {[%clk 0:02:59]}  Bb7 {[%clk 0:02:54]} 5. d3 {[%clk 0:02:59]}  e6 {[%clk 0:02:54]} 6. Be3 {[%clk 0:03:00]}  Nc6 {[%clk 0:02:53]} 7. Qd2 {[%clk 0:03:00]}  Nf6 {[%clk 0:02:51]} 8. h3 {[%clk 0:02:58]}  d5 {[%clk 0:02:50]} 9. exd5 {[%clk 0:02:58]}  exd5 {[%clk 0:02:49]} 10. d4 {[%clk 0:02:58]}  b4 {[%clk 0:02:45]} 11. Nce2 {[%clk 0:02:56]}  c4 {[%clk 0:02:42]} 12. c3 {[%clk 0:02:54]}  Be7 {[%clk 0:02:39]} 13. Nf3 {[%clk 0:02:53]}  O-O {[%clk 0:02:38]} 14. O-O {[%clk 0:02:53]}  a5 {[%clk 0:02:37]} 15. Rad1 {[%clk 0:02:52]}  h6 {[%clk 0:02:33]} 16. Ne5 {[%clk 0:02:52]}  Bd6 {[%clk 0:02:28]} 17. Bf4 {[%clk 0:02:24]}  Ne4 {[%clk 0:02:18]} 18. Bxe4 {[%clk 0:02:10]}  Bxe5 {[%clk 0:02:15]} 19. Bg2 {[%clk 0:02:01]}  Bf6 {[%clk 0:02:11]} 20. h4 {[%clk 0:01:47]}  Re8 {[%clk 0:02:08]} 21. Rfe1 {[%clk 0:01:47]}  Ne7 {[%clk 0:02:04]} 22. Be3 {[%clk 0:01:47]}  Nf5 {[%clk 0:02:00]} 23. Nf4 {[%clk 0:01:47]}  Qd6 {[%clk 0:01:51]} 24. Nh5 {[%clk 0:01:06]}  Be7 {[%clk 0:01:25]} 25. Nf4 {[%clk 0:01:05]}  Bf8 {[%clk 0:01:22]} 26. Bh3 {[%clk 0:01:01]}  Nxe3 {[%clk 0:01:21]} 27. Rxe3 {[%clk 0:01:02]}  Rxe3 {[%clk 0:01:19]} 28. Qxe3 {[%clk 0:01:03]}  Bc6 {[%clk 0:01:17]} 29. Bg2 {[%clk 0:00:58]}  Re8 {[%clk 0:01:13]} 30. Qf3 {[%clk 0:00:58]}  Re4 {[%clk 0:00:55]} 31. Qg4 {[%clk 0:00:50]}  Re8 {[%clk 0:00:46]} 32. Qf3 {[%clk 0:00:49]}  Re4 {[%clk 0:00:44]} 33. Qh5 {[%clk 0:00:49]}  Rxf4 {[%clk 0:00:39]} 34. gxf4 {[%clk 0:00:49]}  Qxf4 {[%clk 0:00:39]} 35. Re1 {[%clk 0:00:25]}  Bd6 {[%clk 0:00:32]} 36. Kf1 {[%clk 0:00:07]}  g6 {[%clk 0:00:20]} 37. Qf3 {[%clk 0:00:04]}  Qxh4 {[%clk 0:00:18]} 38. Qh3 {[%clk 0:00:04]}  Qd8 {[%clk 0:00:13]} 39. Qxh6 {[%clk 0:00:02]}  Bf8 {[%clk 0:00:12]} 40. Qe3 {[%clk 0:00:02]}  Qh4 {[%clk 0:00:10]} 41. Qg3 {[%clk 0:00:02]}  Qf6 {[%clk 0:00:08]} 42. Qf3 {[%clk 0:00:02]}  Qg5 {[%clk 0:00:07]} 43. Qg3 {[%clk 0:00:02]}  Qh6 {[%clk 0:00:06]} 44. Qc7 {[%clk 0:00:01]}  Ba4 {[%clk 0:00:05]} 45. Bxd5 {[%clk 0:00:01]}  Qg7 {[%clk 0:00:03]} 46. Bg2 {[%clk 0:00:01]}  Bc2 {[%clk 0:00:02]} 47. Re8 {[%clk 0:00:01]}  Bd3+ {[%clk 0:00:01]} 48. Ke1 {[%clk 0:00:02]}  Qf6 {[%clk 0:00:01]} 49. Rxf8+ {[%clk 0:00:02]} 1-0


[Site "https://www.chess.com"]

[Event "Titled Tuesday Blitz April 11 Late 2023"]
[White "Gschnitzer, Adrian"]
[Black "Bach, Matthias"]
[WhiteFideId "1270337"]
[BlackFideId "4603168"]
[WhiteElo "2338"]
[BlackElo "2130"]
[Result "1-0"]
[Round "04"]
[TimeControl "180+2"]
[Date "2023.04.11"]
[WhiteClock "0:01:23"]
[BlackClock "0:00:37"]

1. c4 {[%clk 0:03:00]}  Nf6 {[%clk 0:02:47]} 2. Nc3 {[%clk 0:02:58]}  e6 {[%clk 0:02:48]} 3. e4 {[%clk 0:02:58]}  d5 {[%clk 0:02:48]} 4. cxd5 {[%clk 0:02:58]}  exd5 {[%clk 0:02:48]} 5. e5 {[%clk 0:02:59]}  Ne4 {[%clk 0:02:48]} 6. Nxe4 {[%clk 0:02:49]}  dxe4 {[%clk 0:02:47]} 7. Qa4+ {[%clk 0:02:50]}  Bd7 {[%clk 0:02:45]} 8. Qxe4 {[%clk 0:02:50]}  Bc5 {[%clk 0:02:41]} 9. Qxb7 {[%clk 0:02:37]}  Bc6 {[%clk 0:02:39]} 10. Bb5 {[%clk 0:02:37]}  Bxb5 {[%clk 0:01:59]} 11. Qxb5+ {[%clk 0:02:35]}  Nd7 {[%clk 0:01:59]} 12. Nf3 {[%clk 0:02:29]}  O-O {[%clk 0:01:57]} 13. d4 {[%clk 0:02:29]}  Rb8 {[%clk 0:01:56]} 14. Qe2 {[%clk 0:02:24]}  Bb4+ {[%clk 0:01:56]} 15. Bd2 {[%clk 0:02:24]}  Bxd2+ {[%clk 0:01:38]} 16. Qxd2 {[%clk 0:02:25]}  Nb6 {[%clk 0:01:38]} 17. b3 {[%clk 0:02:19]}  f6 {[%clk 0:01:15]} 18. O-O {[%clk 0:02:11]}  Qd5 {[%clk 0:01:14]} 19. Qc3 {[%clk 0:02:01]}  fxe5 {[%clk 0:00:57]} 20. dxe5 {[%clk 0:01:59]}  Qb7 {[%clk 0:00:53]} 21. Rac1 {[%clk 0:01:56]}  Nd5 {[%clk 0:00:49]} 22. Qc6 {[%clk 0:01:54]}  Nf4 {[%clk 0:00:45]} 23. Qxb7 {[%clk 0:01:42]}  Rxb7 {[%clk 0:00:46]} 24. Rc2 {[%clk 0:01:42]}  Re8 {[%clk 0:00:42]} 25. Re1 {[%clk 0:01:41]}  Re7 {[%clk 0:00:40]} 26. g3 {[%clk 0:01:40]}  Nd5 {[%clk 0:00:39]} 27. Rc5 {[%clk 0:01:36]}  Nb4 {[%clk 0:00:38]} 28. Re2 {[%clk 0:01:26]}  Nd3 {[%clk 0:00:37]} 29. Rd5 {[%clk 0:01:23]}  c6 {[%clk 0:00:37]} 30. Rxd3 {[%clk 0:01:23]} 1-0


[Site "https://www.chess.com"]

[Event "Titled Tuesday Blitz April 11 Late 2023"]
[White "Goltseva, Ekaterina"]
[Black "Hoffmann, Asa"]
[WhiteFideId "24173770"]
[BlackFideId "2001470"]
[WhiteElo "2200"]
[BlackElo "2117"]
[Result "0-1"]
[Round "04"]
[TimeControl "180+2"]
[Date "2023.04.11"]
[WhiteClock "0:00:11"]
[BlackClock "0:00:48"]

1. Nf3 {[%clk 0:02:59]}  d6 {[%clk 0:02:57]} 2. e4 {[%clk 0:02:37]}  Bg4 {[%clk 0:02:56]} 3. Be2 {[%clk 0:02:36]}  Nf6 {[%clk 0:02:56]} 4. d3 {[%clk 0:02:35]}  c6 {[%clk 0:02:56]} 5. Be3 {[%clk 0:02:35]}  e6 {[%clk 0:02:56]} 6. Nbd2 {[%clk 0:02:35]}  d5 {[%clk 0:02:56]} 7. e5 {[%clk 0:02:34]}  Nfd7 {[%clk 0:02:55]} 8. d4 {[%clk 0:02:34]}  c5 {[%clk 0:02:55]} 9. c3 {[%clk 0:02:34]}  Nc6 {[%clk 0:02:55]} 10. O-O {[%clk 0:02:33]}  Be7 {[%clk 0:02:55]} 11. h3 {[%clk 0:02:27]}  Bh5 {[%clk 0:02:55]} 12. Re1 {[%clk 0:02:15]}  O-O {[%clk 0:02:54]} 13. Nf1 {[%clk 0:02:15]}  Qb6 {[%clk 0:02:52]} 14. Rb1 {[%clk 0:01:51]}  Bg6 {[%clk 0:02:50]} 15. Bd3 {[%clk 0:01:52]}  cxd4 {[%clk 0:02:45]} 16. cxd4 {[%clk 0:01:50]}  Rac8 {[%clk 0:02:37]} 17. Bxg6 {[%clk 0:01:47]}  hxg6 {[%clk 0:02:35]} 18. b4 {[%clk 0:01:40]}  a6 {[%clk 0:02:29]} 19. a3 {[%clk 0:01:34]}  Na7 {[%clk 0:02:26]} 20. Qb3 {[%clk 0:01:25]}  Nb5 {[%clk 0:02:24]} 21. Rec1 {[%clk 0:01:24]}  Nb8 {[%clk 0:02:22]} 22. Ng3 {[%clk 0:01:12]}  Rc6 {[%clk 0:02:14]} 23. Rxc6 {[%clk 0:01:01]}  Nxc6 {[%clk 0:02:13]} 24. Ne2 {[%clk 0:01:01]}  Rc8 {[%clk 0:02:05]} 25. Rc1 {[%clk 0:00:44]}  Nca7 {[%clk 0:01:54]} 26. Rxc8+ {[%clk 0:00:38]}  Nxc8 {[%clk 0:01:53]} 27. Ne1 {[%clk 0:00:28]}  Qc6 {[%clk 0:01:52]} 28. Nd3 {[%clk 0:00:26]}  Nb6 {[%clk 0:01:52]} 29. Nc5 {[%clk 0:00:24]}  Nc4 {[%clk 0:01:47]} 30. a4 {[%clk 0:00:22]}  Na7 {[%clk 0:01:41]} 31. Nc3 {[%clk 0:00:16]}  b5 {[%clk 0:01:36]} 32. a5 {[%clk 0:00:14]}  Bxc5 {[%clk 0:01:35]} 33. bxc5 {[%clk 0:00:12]}  Qc7 {[%clk 0:01:32]} 34. Ne2 {[%clk 0:00:04]}  Qxa5 {[%clk 0:01:30]} 35. Bg5 {[%clk 0:00:03]}  Qe1+ {[%clk 0:01:26]} 36. Kh2 {[%clk 0:00:04]}  Qxe2 {[%clk 0:01:26]} 37. Qg3 {[%clk 0:00:03]}  Qe4 {[%clk 0:01:22]} 38. Bd8 {[%clk 0:00:03]}  Nc6 {[%clk 0:01:22]} 39. Qg5 {[%clk 0:00:03]}  N4xe5 {[%clk 0:01:19]} 40. dxe5 {[%clk 0:00:03]}  Qxe5+ {[%clk 0:01:19]} 41. Qxe5 {[%clk 0:00:03]}  Nxe5 {[%clk 0:01:19]} 42. Ba5 {[%clk 0:00:04]}  Nc6 {[%clk 0:01:18]} 43. Bd2 {[%clk 0:00:04]}  b4 {[%clk 0:00:53]} 44. Kg3 {[%clk 0:00:05]}  a5 {[%clk 0:00:53]} 45. Kf3 {[%clk 0:00:05]}  a4 {[%clk 0:00:54]} 46. Ke2 {[%clk 0:00:06]}  a3 {[%clk 0:00:54]} 47. Bc1 {[%clk 0:00:07]}  e5 {[%clk 0:00:53]} 48. Kd3 {[%clk 0:00:07]}  f5 {[%clk 0:00:52]} 49. Kc2 {[%clk 0:00:07]}  Kf7 {[%clk 0:00:51]} 50. Kb3 {[%clk 0:00:08]}  Ke6 {[%clk 0:00:50]} 51. Ka4 {[%clk 0:00:08]}  d4 {[%clk 0:00:50]} 52. Kb5 {[%clk 0:00:09]}  Kd5 {[%clk 0:00:50]} 53. f4 {[%clk 0:00:09]}  e4 {[%clk 0:00:50]} 54. g4 {[%clk 0:00:08]}  e3 {[%clk 0:00:50]} 55. gxf5 {[%clk 0:00:09]}  gxf5 {[%clk 0:00:50]} 56. h4 {[%clk 0:00:09]}  e2 {[%clk 0:00:50]} 57. Bd2 {[%clk 0:00:09]}  a2 {[%clk 0:00:50]} 58. h5 {[%clk 0:00:10]}  a1=Q {[%clk 0:00:49]} 59. h6 {[%clk 0:00:11]}  Qa5# {[%clk 0:00:48]} 0-1


[Site "https://www.chess.com"]